[Event "Titled Tuesday Blitz August 24 2021"]
[White "Silva, Miguel Antonio Neto"]
[Black "Jarovinsky, Alexey"]
[WhiteFideId "1911929"]
[BlackFideId "14115131"]
[WhiteElo "2449"]
[BlackElo "2756"]
[Result "0-1"]
[Round "09"]
[TimeControl "180+1"]
[Date "2021.08.24"]
[WhiteClock "0:00:19"]
[BlackClock "0:00:10"]

1. Nf3 {[%clk 0:03:00]}  Nc6 {[%clk 0:02:24]} 2. d4 {[%clk 0:02:59]}  Nf6 {[%clk 0:02:19]} 3. g3 {[%clk 0:02:57]}  g6 {[%clk 0:02:16]} 4. Bg2 {[%clk 0:02:54]}  Bg7 {[%clk 0:02:16]} 5. O-O {[%clk 0:02:54]}  O-O {[%clk 0:02:14]} 6. c4 {[%clk 0:02:54]}  d6 {[%clk 0:02:11]} 7. Nc3 {[%clk 0:02:54]}  a6 {[%clk 0:02:08]} 8. b3 {[%clk 0:02:50]}  Bg4 {[%clk 0:02:05]} 9. Bg5 {[%clk 0:02:48]}  h6 {[%clk 0:02:04]} 10. Bd2 {[%clk 0:02:47]}  Qd7 {[%clk 0:02:01]} 11. Rc1 {[%clk 0:02:46]}  e5 {[%clk 0:01:58]} 12. dxe5 {[%clk 0:02:44]}  dxe5 {[%clk 0:01:57]} 13. Be3 {[%clk 0:02:40]}  Rad8 {[%clk 0:01:47]} 14. Qxd7 {[%clk 0:02:39]}  Rxd7 {[%clk 0:01:48]} 15. h3 {[%clk 0:02:34]}  Be6 {[%clk 0:01:44]} 16. Rfd1 {[%clk 0:02:33]}  Rfd8 {[%clk 0:01:43]} 17. Rxd7 {[%clk 0:02:32]}  Rxd7 {[%clk 0:01:44]} 18. Rd1 {[%clk 0:02:31]}  Rxd1+ {[%clk 0:01:43]} 19. Nxd1 {[%clk 0:02:30]}  Nd7 {[%clk 0:01:33]} 20. Nc3 {[%clk 0:02:28]}  f5 {[%clk 0:01:30]} 21. Ne1 {[%clk 0:02:07]}  e4 {[%clk 0:01:29]} 22. Bd2 {[%clk 0:02:00]}  Nb4 {[%clk 0:01:27]} 23. a3 {[%clk 0:01:54]}  Nc6 {[%clk 0:01:25]} 24. Nc2 {[%clk 0:01:48]}  Nc5 {[%clk 0:01:11]} 25. b4 {[%clk 0:01:39]}  Nb3 {[%clk 0:01:10]} 26. Be1 {[%clk 0:01:37]}  Bxc4 {[%clk 0:01:09]} 27. Ne3 {[%clk 0:01:36]}  Bxc3 {[%clk 0:00:55]} 28. Bxc3 {[%clk 0:01:35]}  Bxe2 {[%clk 0:00:55]} 29. Nd5 {[%clk 0:01:33]}  Bc4 {[%clk 0:00:49]} 30. Nxc7 {[%clk 0:01:31]}  Kf7 {[%clk 0:00:47]} 31. Na8 {[%clk 0:01:23]}  Nbd4 {[%clk 0:00:42]} 32. Kh2 {[%clk 0:01:11]}  b5 {[%clk 0:00:39]} 33. Nb6 {[%clk 0:01:10]}  Be6 {[%clk 0:00:39]} 34. g4 {[%clk 0:01:08]}  Ke7 {[%clk 0:00:32]} 35. Bd2 {[%clk 0:01:05]}  h5 {[%clk 0:00:31]} 36. gxh5 {[%clk 0:01:03]}  gxh5 {[%clk 0:00:32]} 37. Bf4 {[%clk 0:00:51]}  Ne2 {[%clk 0:00:31]} 38. Be3 {[%clk 0:00:50]}  Kd6 {[%clk 0:00:26]} 39. Bc5+ {[%clk 0:00:48]}  Kc7 {[%clk 0:00:25]} 40. f3 {[%clk 0:00:48]}  Nc3 {[%clk 0:00:19]} 41. fxe4 {[%clk 0:00:47]}  Nxe4 {[%clk 0:00:18]} 42. Be3 {[%clk 0:00:43]}  Kb7 {[%clk 0:00:15]} 43. Bf3 {[%clk 0:00:41]}  h4 {[%clk 0:00:14]} 44. Kg2 {[%clk 0:00:39]}  Ne5 {[%clk 0:00:14]} 45. Bd4 {[%clk 0:00:30]}  Nd3 {[%clk 0:00:13]} 46. Bxe4+ {[%clk 0:00:21]}  fxe4 {[%clk 0:00:12]} 47. Be3 {[%clk 0:00:20]}  Ne5 {[%clk 0:00:11]} 48. Kf2 {[%clk 0:00:19]}  Bxh3 {[%clk 0:00:10]} 49. Bd4 {[%clk 0:00:19]}  Nc6 {[%clk 0:00:10]} 50. Ke3 {[%clk 0:00:19]}  Nxd4 {[%clk 0:00:09]} 51. Kxd4 {[%clk 0:00:19]}  Kxb6 {[%clk 0:00:10]} 0-1


[Site "https://www.chess.com"]

[Event "Titled Tuesday Blitz August 24 2021"]
[White "Skliarov, Viktor"]
[Black "Lazavik, Denis"]
[WhiteFideId "14106736"]
[BlackFideId "13515110"]
[WhiteElo "2281"]
[BlackElo "2436"]
[Result "1/2-1/2"]
[Round "09"]
[TimeControl "180+1"]
[Date "2021.08.24"]
[WhiteClock "0:00:02"]
[BlackClock "0:00:02"]

1. e4 {[%clk 0:03:00]}  c5 {[%clk 0:02:59]} 2. Nf3 {[%clk 0:03:00]}  e6 {[%clk 0:02:59]} 3. d4 {[%clk 0:02:59]}  cxd4 {[%clk 0:03:00]} 4. Nxd4 {[%clk 0:03:00]}  Nc6 {[%clk 0:03:01]} 5. Nc3 {[%clk 0:03:00]}  Qc7 {[%clk 0:03:01]} 6. Be2 {[%clk 0:03:00]}  a6 {[%clk 0:02:59]} 7. O-O {[%clk 0:03:00]}  Nf6 {[%clk 0:02:58]} 8. Be3 {[%clk 0:03:01]}  Be7 {[%clk 0:02:57]} 9. Kh1 {[%clk 0:02:59]}  O-O {[%clk 0:02:54]} 10. f4 {[%clk 0:03:00]}  d6 {[%clk 0:02:54]} 11. Qe1 {[%clk 0:03:00]}  Nxd4 {[%clk 0:02:48]} 12. Bxd4 {[%clk 0:03:00]}  b5 {[%clk 0:02:49]} 13. a3 {[%clk 0:02:59]}  Bb7 {[%clk 0:02:48]} 14. Qg3 {[%clk 0:02:59]}  Bc6 {[%clk 0:02:36]} 15. Bd3 {[%clk 0:02:29]}  e5 {[%clk 0:02:27]} 16. fxe5 {[%clk 0:02:19]}  Nh5 {[%clk 0:02:26]} 17. Qg4 {[%clk 0:01:45]}  dxe5 {[%clk 0:02:25]} 18. Qxh5 {[%clk 0:01:45]}  exd4 {[%clk 0:02:25]} 19. Nd5 {[%clk 0:01:45]}  Bxd5 {[%clk 0:02:24]} 20. exd5 {[%clk 0:01:40]}  g6 {[%clk 0:02:22]} 21. Qf3 {[%clk 0:01:37]}  Bd6 {[%clk 0:02:20]} 22. g3 {[%clk 0:01:33]}  Rae8 {[%clk 0:01:54]} 23. Rae1 {[%clk 0:01:31]}  Re5 {[%clk 0:01:47]} 24. Rxe5 {[%clk 0:01:26]}  Bxe5 {[%clk 0:01:46]} 25. Re1 {[%clk 0:01:20]}  Re8 {[%clk 0:01:42]} 26. Kg2 {[%clk 0:01:19]}  Kg7 {[%clk 0:01:41]} 27. Re4 {[%clk 0:00:58]}  Qd6 {[%clk 0:01:38]} 28. Re2 {[%clk 0:00:55]}  Rc8 {[%clk 0:01:17]} 29. Qe4 {[%clk 0:00:50]}  Bf6 {[%clk 0:01:15]} 30. Qf3 {[%clk 0:00:47]}  Rc5 {[%clk 0:01:12]} 31. Be4 {[%clk 0:00:46]}  Bg5 {[%clk 0:01:03]} 32. Qd3 {[%clk 0:00:35]}  Bf6 {[%clk 0:00:47]} 33. Bf3 {[%clk 0:00:35]}  h5 {[%clk 0:00:46]} 34. Re8 {[%clk 0:00:28]}  Qc7 {[%clk 0:00:42]} 35. Re2 {[%clk 0:00:27]}  Qd7 {[%clk 0:00:32]} 36. Qe4 {[%clk 0:00:26]}  Rc8 {[%clk 0:00:31]} 37. h4 {[%clk 0:00:25]}  Qd6 {[%clk 0:00:24]} 38. Kh3 {[%clk 0:00:22]}  Rc7 {[%clk 0:00:21]} 39. Kg2 {[%clk 0:00:20]}  Re7 {[%clk 0:00:20]} 40. Qd3 {[%clk 0:00:19]}  Re5 {[%clk 0:00:17]} 41. Rxe5 {[%clk 0:00:18]}  Qxe5 {[%clk 0:00:18]} 42. Qe4 {[%clk 0:00:18]}  Qc7 {[%clk 0:00:17]} 43. Be2 {[%clk 0:00:17]}  Qc5 {[%clk 0:00:16]} 44. Bd3 {[%clk 0:00:16]}  Be7 {[%clk 0:00:16]} 45. Qe5+ {[%clk 0:00:16]}  Kg8 {[%clk 0:00:16]} 46. Qb8+ {[%clk 0:00:13]}  Kg7 {[%clk 0:00:13]} 47. Qe5+ {[%clk 0:00:14]}  Bf6 {[%clk 0:00:11]} 48. Qe4 {[%clk 0:00:13]}  Qd6 {[%clk 0:00:09]} 49. Kf3 {[%clk 0:00:13]}  Be5 {[%clk 0:00:09]} 50. Qe1 {[%clk 0:00:12]}  f5 {[%clk 0:00:09]} 51. Kg2 {[%clk 0:00:11]}  Qxd5+ {[%clk 0:00:09]} 52. Kf2 {[%clk 0:00:08]}  Qd6 {[%clk 0:00:08]} 53. Kg2 {[%clk 0:00:08]}  Kf6 {[%clk 0:00:09]} 54. Qf2 {[%clk 0:00:08]}  Qd5+ {[%clk 0:00:09]} 55. Qf3 {[%clk 0:00:08]}  Qd6 {[%clk 0:00:06]} 56. Kf2 {[%clk 0:00:07]}  Kg7 {[%clk 0:00:06]} 57. Kg2 {[%clk 0:00:07]}  Kh6 {[%clk 0:00:06]} 58. Kf2 {[%clk 0:00:06]}  Qf6 {[%clk 0:00:06]} 59. Kg2 {[%clk 0:00:05]}  f4 {[%clk 0:00:07]} 60. gxf4 {[%clk 0:00:04]}  Bxf4 {[%clk 0:00:07]} 61. Qe4 {[%clk 0:00:04]}  Be5 {[%clk 0:00:04]} 62. Kg1 {[%clk 0:00:02]}  Kg7 {[%clk 0:00:04]} 63. Kg2 {[%clk 0:00:03]}  Bf4 {[%clk 0:00:03]} 64. Qb7+ {[%clk 0:00:02]}  Kh6 {[%clk 0:00:04]} 65. Qe4 {[%clk 0:00:03]}  Be3 {[%clk 0:00:04]} 66. Kh2 {[%clk 0:00:01]}  Bf4+ {[%clk 0:00:02]} 67. Kg2 {[%clk 0:00:02]} 1/2-1/2


[Site "https://www.chess.com"]

[Event "Titled Tuesday Blitz August 24 2021"]
[White "Svane, Rasmus"]
[Black "Timmermans, Mark"]
[WhiteFideId "4657101"]
[BlackFideId "1026399"]
[WhiteElo "2669"]
[BlackElo "2460"]
[Result "1/2-1/2"]
[Round "09"]
[TimeControl "180+1"]
[Date "2021.08.24"]
[WhiteClock "0:00:06"]
[BlackClock "0:00:41"]

1. Nf3 {[%clk 0:03:00]}  Nf6 {[%clk 0:02:59]} 2. g3 {[%clk 0:03:01]}  e6 {[%clk 0:03:00]} 3. Bg2 {[%clk 0:03:01]}  d5 {[%clk 0:03:01]} 4. O-O {[%clk 0:03:02]}  Be7 {[%clk 0:03:02]} 5. c4 {[%clk 0:03:02]}  O-O {[%clk 0:03:03]} 6. b3 {[%clk 0:03:03]}  c5 {[%clk 0:03:03]} 7. cxd5 {[%clk 0:03:02]}  Nxd5 {[%clk 0:03:04]} 8. Nc3 {[%clk 0:03:02]}  Nc6 {[%clk 0:03:03]} 9. Nxd5 {[%clk 0:03:00]}  Qxd5 {[%clk 0:03:03]} 10. Bb2 {[%clk 0:02:57]}  Qd8 {[%clk 0:03:00]} 11. Rc1 {[%clk 0:02:52]}  Bd7 {[%clk 0:03:00]} 12. d4 {[%clk 0:02:19]}  cxd4 {[%clk 0:03:01]} 13. Nxd4 {[%clk 0:02:19]}  Rc8 {[%clk 0:02:56]} 14. Nxc6 {[%clk 0:02:18]}  Bxc6 {[%clk 0:02:56]} 15. Bxc6 {[%clk 0:02:16]}  bxc6 {[%clk 0:02:28]} 16. Rc4 {[%clk 0:02:15]}  Bf6 {[%clk 0:02:27]} 17. Bxf6 {[%clk 0:02:05]}  Qxf6 {[%clk 0:02:25]} 18. Qc2 {[%clk 0:02:00]}  Qe5 {[%clk 0:02:25]} 19. Rc1 {[%clk 0:01:58]}  h6 {[%clk 0:02:22]} 20. e3 {[%clk 0:01:55]}  Rfd8 {[%clk 0:02:15]} 21. Rxc6 {[%clk 0:01:25]}  Rxc6 {[%clk 0:02:16]} 22. Qxc6 {[%clk 0:01:26]}  Qb2 {[%clk 0:02:08]} 23. Qc2 {[%clk 0:01:05]}  Rd2 {[%clk 0:01:42]} 24. Qxb2 {[%clk 0:01:05]}  Rxb2 {[%clk 0:01:43]} 25. Rc8+ {[%clk 0:01:05]}  Kh7 {[%clk 0:01:43]} 26. Rc7 {[%clk 0:01:06]}  Rxa2 {[%clk 0:01:40]} 27. Rxf7 {[%clk 0:01:06]}  Kg6 {[%clk 0:01:36]} 28. Rb7 {[%clk 0:00:46]}  Kf6 {[%clk 0:01:34]} 29. Kg2 {[%clk 0:00:41]}  a5 {[%clk 0:01:35]} 30. g4 {[%clk 0:00:41]}  a4 {[%clk 0:01:34]} 31. Kg3 {[%clk 0:00:30]}  Rb2 {[%clk 0:01:16]} 32. b4 {[%clk 0:00:29]}  a3 {[%clk 0:01:15]} 33. Ra7 {[%clk 0:00:29]}  a2 {[%clk 0:01:16]} 34. f4 {[%clk 0:00:26]}  Re2 {[%clk 0:01:04]} 35. Kf3 {[%clk 0:00:20]}  Rxh2 {[%clk 0:01:04]} 36. Ra6 {[%clk 0:00:15]}  Kf7 {[%clk 0:01:01]} 37. Ke4 {[%clk 0:00:15]}  Rb2 {[%clk 0:01:00]} 38. Ke5 {[%clk 0:00:10]}  Rxb4 {[%clk 0:01:00]} 39. Ra7+ {[%clk 0:00:10]}  Kg8 {[%clk 0:01:00]} 40. Rxa2 {[%clk 0:00:10]}  Rb6 {[%clk 0:00:58]} 41. Ra8+ {[%clk 0:00:11]}  Kf7 {[%clk 0:00:58]} 42. Ra7+ {[%clk 0:00:11]}  Kf8 {[%clk 0:00:58]} 43. e4 {[%clk 0:00:09]}  Rc6 {[%clk 0:00:58]} 44. Rd7 {[%clk 0:00:09]}  Rc4 {[%clk 0:00:41]} 45. Rd6 {[%clk 0:00:08]}  Kf7 {[%clk 0:00:41]} 46. Rd7+ {[%clk 0:00:08]}  Kf8 {[%clk 0:00:41]} 47. Rb7 {[%clk 0:00:09]}  Ra4 {[%clk 0:00:41]} 48. Rb6 {[%clk 0:00:08]}  Kf7 {[%clk 0:00:41]} 49. Rc6 {[%clk 0:00:07]}  Rb4 {[%clk 0:00:41]} 50. Rc7+ {[%clk 0:00:07]}  Kf8 {[%clk 0:00:41]} 51. Ra7 {[%clk 0:00:07]}  Rc4 {[%clk 0:00:41]} 52. Ra8+ {[%clk 0:00:07]}  Kf7 {[%clk 0:00:41]} 53. Ra7+ {[%clk 0:00:07]}  Kf8 {[%clk 0:00:42]} 54. Ra5 {[%clk 0:00:08]}  Rb4 {[%clk 0:00:41]} 55. Rc5 {[%clk 0:00:08]}  Ra4 {[%clk 0:00:42]} 56. Rb5 {[%clk 0:00:08]}  Kf7 {[%clk 0:00:40]} 57. Rb7+ {[%clk 0:00:07]}  Kf8 {[%clk 0:00:40]} 58. Rb8+ {[%clk 0:00:06]}  Kf7 {[%clk 0:00:41]} 59. Rb7+ {[%clk 0:00:06]}  Kf8 {[%clk 0:00:41]} 1/2-1/2


[Site "https://www.chess.com"]

[Event "Titled Tuesday Blitz August 24 2021"]
[White "Terry, Renato"]
[Black "Molina, Roberto Junio Brito"]
[WhiteFideId "3803457"]
[BlackFideId "2109450"]
[WhiteElo "2581"]
[BlackElo "2402"]
[Result "1-0"]
[Round "09"]
[TimeControl "180+1"]
[Date "2021.08.24"]
[WhiteClock "0:00:19"]
[BlackClock "0:00:03"]

1. Nf3 {[%clk 0:03:00]}  d5 {[%clk 0:02:59]} 2. b3 {[%clk 0:02:59]}  Bg4 {[%clk 0:02:58]} 3. Bb2 {[%clk 0:02:59]}  Bxf3 {[%clk 0:02:52]} 4. gxf3 {[%clk 0:02:59]}  e6 {[%clk 0:02:53]} 5. e3 {[%clk 0:02:52]}  Nd7 {[%clk 0:02:53]} 6. f4 {[%clk 0:02:51]}  Ngf6 {[%clk 0:02:52]} 7. Qf3 {[%clk 0:02:48]}  g6 {[%clk 0:02:51]} 8. c4 {[%clk 0:02:42]}  c6 {[%clk 0:02:50]} 9. cxd5 {[%clk 0:02:38]}  cxd5 {[%clk 0:02:46]} 10. Bb5 {[%clk 0:02:16]}  Bg7 {[%clk 0:02:44]} 11. f5 {[%clk 0:02:16]}  exf5 {[%clk 0:02:37]} 12. h4 {[%clk 0:01:46]}  O-O {[%clk 0:02:32]} 13. h5 {[%clk 0:01:43]}  Nxh5 {[%clk 0:02:24]} 14. Bxg7 {[%clk 0:01:42]}  Nxg7 {[%clk 0:02:24]} 15. Qxd5 {[%clk 0:01:36]}  Nf6 {[%clk 0:02:17]} 16. Qxb7 {[%clk 0:01:25]}  Rb8 {[%clk 0:02:12]} 17. Qc6 {[%clk 0:01:25]}  Rb6 {[%clk 0:02:09]} 18. Qc4 {[%clk 0:01:22]}  Qa8 {[%clk 0:01:58]} 19. Rf1 {[%clk 0:01:18]}  Rc8 {[%clk 0:01:56]} 20. Qa4 {[%clk 0:01:17]}  Ne4 {[%clk 0:00:46]} 21. Na3 {[%clk 0:00:59]}  Ng5 {[%clk 0:00:31]} 22. Qf4 {[%clk 0:00:43]}  N7e6 {[%clk 0:00:26]} 23. Qa4 {[%clk 0:00:32]}  Nc5 {[%clk 0:00:17]} 24. Qa5 {[%clk 0:00:31]}  Nf3+ {[%clk 0:00:14]} 25. Ke2 {[%clk 0:00:31]}  Ng5 {[%clk 0:00:05]} 26. f3 {[%clk 0:00:30]}  Nce6 {[%clk 0:00:04]} 27. Bc4 {[%clk 0:00:28]}  Rd8 {[%clk 0:00:04]} 28. Rad1 {[%clk 0:00:25]}  Rbd6 {[%clk 0:00:04]} 29. Nb5 {[%clk 0:00:24]}  R6d7 {[%clk 0:00:04]} 30. Nc3 {[%clk 0:00:22]}  f4 {[%clk 0:00:03]} 31. Bxe6 {[%clk 0:00:18]}  Nxe6 {[%clk 0:00:03]} 32. Ne4 {[%clk 0:00:19]} 1-0


[Site "https://www.chess.com"]

[Event "Titled Tuesday Blitz August 24 2021"]
[White "Tregubov, Pavel V."]
[Black "TanitoluwaAps116"]
[WhiteFideId "4115341"]
[WhiteElo "2423"]
[BlackElo "2465"]
[Result "0-1"]
[Round "09"]
[TimeControl "180+1"]
[Date "2021.08.24"]
[WhiteClock "0:00:49"]
[BlackClock "0:00:44"]

1. e4 {[%clk 0:03:00]}  c5 {[%clk 0:02:51]} 2. Nf3 {[%clk 0:03:00]}  e6 {[%clk 0:02:50]} 3. c3 {[%clk 0:02:56]}  Nf6 {[%clk 0:02:47]} 4. e5 {[%clk 0:02:55]}  Nd5 {[%clk 0:02:47]} 5. d4 {[%clk 0:02:56]}  Nc6 {[%clk 0:02:46]} 6. Bc4 {[%clk 0:02:55]}  Nb6 {[%clk 0:02:46]} 7. Bd3 {[%clk 0:02:51]}  d6 {[%clk 0:02:43]} 8. O-O {[%clk 0:02:50]}  dxe5 {[%clk 0:02:43]} 9. dxe5 {[%clk 0:02:50]}  Be7 {[%clk 0:02:40]} 10. Qe2 {[%clk 0:02:50]}  O-O {[%clk 0:02:36]} 11. Rd1 {[%clk 0:02:51]}  Qc7 {[%clk 0:02:36]} 12. Qe4 {[%clk 0:02:49]}  g6 {[%clk 0:02:33]} 13. Bg5 {[%clk 0:02:50]}  Bxg5 {[%clk 0:02:31]} 14. Nxg5 {[%clk 0:02:50]}  Qxe5 {[%clk 0:02:31]} 15. Qh4 {[%clk 0:02:49]}  Qg7 {[%clk 0:02:27]} 16. Nd2 {[%clk 0:02:45]}  Ne5 {[%clk 0:02:16]} 17. Nde4 {[%clk 0:02:44]}  h6 {[%clk 0:02:12]} 18. Nh3 {[%clk 0:02:23]}  c4 {[%clk 0:02:10]} 19. Nf6+ {[%clk 0:02:19]}  Kh8 {[%clk 0:02:08]} 20. Be4 {[%clk 0:01:17]}  g5 {[%clk 0:01:35]} 21. Qh5 {[%clk 0:01:15]}  Qxf6 {[%clk 0:01:33]} 22. f4 {[%clk 0:01:15]}  gxf4 {[%clk 0:01:13]} 23. Rf1 {[%clk 0:01:15]}  Nd5 {[%clk 0:01:06]} 24. Bxd5 {[%clk 0:01:13]}  exd5 {[%clk 0:01:07]} 25. Rxf4 {[%clk 0:01:11]}  Qg7 {[%clk 0:01:02]} 26. Raf1 {[%clk 0:01:10]}  Bg4 {[%clk 0:00:57]} 27. Qh4 {[%clk 0:01:10]}  Be2 {[%clk 0:00:52]} 28. Rf6 {[%clk 0:00:49]}  Ng6 {[%clk 0:00:44]} 0-1


[Site "https://www.chess.com"]

[Event "Titled Tuesday Blitz August 24 2021"]
[White "Tsaruk, Maksim"]
[Black "Nozdrachev, Leonid"]
[WhiteFideId "13511173"]
[BlackFideId "24113433"]
[WhiteElo "2184"]
[BlackElo "2240"]
[Result "0-1"]
[Round "09"]
[TimeControl "180+1"]
[Date "2021.08.24"]
[WhiteClock "0:00:04"]
[BlackClock "0:00:10"]

1. e4 {[%clk 0:02:54]}  c6 {[%clk 0:02:59]} 2. d4 {[%clk 0:02:53]}  d5 {[%clk 0:02:59]} 3. Nd2 {[%clk 0:02:53]}  dxe4 {[%clk 0:02:58]} 4. Nxe4 {[%clk 0:02:54]}  Nf6 {[%clk 0:02:58]} 5. Nxf6+ {[%clk 0:02:55]}  exf6 {[%clk 0:02:59]} 6. c3 {[%clk 0:02:55]}  Bd6 {[%clk 0:02:57]} 7. Bd3 {[%clk 0:02:56]}  Na6 {[%clk 0:02:56]} 8. Qc2 {[%clk 0:02:57]}  h5 {[%clk 0:02:54]} 9. Ne2 {[%clk 0:02:58]}  Kf8 {[%clk 0:02:50]} 10. Bf4 {[%clk 0:02:58]}  Nc7 {[%clk 0:02:48]} 11. O-O-O {[%clk 0:02:55]}  b5 {[%clk 0:02:45]} 12. Kb1 {[%clk 0:02:53]}  Be6 {[%clk 0:02:44]} 13. Rhe1 {[%clk 0:02:42]}  a5 {[%clk 0:02:43]} 14. Bf5 {[%clk 0:02:38]}  g6 {[%clk 0:02:34]} 15. Bxe6 {[%clk 0:02:35]}  Nxe6 {[%clk 0:02:35]} 16. Bxd6+ {[%clk 0:02:35]}  Qxd6 {[%clk 0:02:35]} 17. Ng3 {[%clk 0:02:36]}  f5 {[%clk 0:02:34]} 18. Nf1 {[%clk 0:01:56]}  Kg7 {[%clk 0:02:30]} 19. Ne3 {[%clk 0:01:39]}  Nf4 {[%clk 0:02:14]} 20. Qxf5 {[%clk 0:01:30]}  Nxg2 {[%clk 0:02:12]} 21. Qg5 {[%clk 0:01:26]}  Nxe3 {[%clk 0:02:04]} 22. fxe3 {[%clk 0:01:15]}  Qd5 {[%clk 0:01:53]} 23. Qf4 {[%clk 0:01:10]}  f5 {[%clk 0:01:33]} 24. e4 {[%clk 0:01:09]}  fxe4 {[%clk 0:01:33]} 25. Rxe4 {[%clk 0:01:09]}  Rhf8 {[%clk 0:01:30]} 26. Re7+ {[%clk 0:00:55]}  Rf7 {[%clk 0:01:26]} 27. Qe5+ {[%clk 0:00:02]}  Qxe5 {[%clk 0:01:23]} 28. Rxe5 {[%clk 0:00:03]}  Rf2 {[%clk 0:01:17]} 29. h4 {[%clk 0:00:03]}  Raf8 {[%clk 0:01:15]} 30. d5 {[%clk 0:00:02]}  Rd8 {[%clk 0:01:12]} 31. d6 {[%clk 0:00:01]}  Rf6 {[%clk 0:01:09]} 32. Re7+ {[%clk 0:00:01]}  Rf7 {[%clk 0:01:08]} 33. Re6 {[%clk 0:00:01]}  Rf4 {[%clk 0:01:05]} 34. Re7+ {[%clk 0:00:02]}  Kf6 {[%clk 0:01:04]} 35. Rc7 {[%clk 0:00:02]}  Rxh4 {[%clk 0:00:57]} 36. Rxc6 {[%clk 0:00:02]}  Re4 {[%clk 0:00:57]} 37. d7+ {[%clk 0:00:03]}  Re6 {[%clk 0:00:56]} 38. Rc8 {[%clk 0:00:02]}  Ke7 {[%clk 0:00:55]} 39. Rc7 {[%clk 0:00:03]}  g5 {[%clk 0:00:52]} 40. Rc5 {[%clk 0:00:03]}  Rg6 {[%clk 0:00:49]} 41. Re5+ {[%clk 0:00:02]}  Kf7 {[%clk 0:00:40]} 42. Rxb5 {[%clk 0:00:03]}  g4 {[%clk 0:00:37]} 43. Rxh5 {[%clk 0:00:03]}  g3 {[%clk 0:00:36]} 44. Rf5+ {[%clk 0:00:03]}  Ke7 {[%clk 0:00:34]} 45. Rxa5 {[%clk 0:00:03]}  Rxd7 {[%clk 0:00:31]} 46. Re5+ {[%clk 0:00:03]}  Kd8 {[%clk 0:00:30]} 47. Rxd7+ {[%clk 0:00:04]}  Kxd7 {[%clk 0:00:30]} 48. Re1 {[%clk 0:00:04]}  Kd6 {[%clk 0:00:23]} 49. Rg1 {[%clk 0:00:04]}  Ke5 {[%clk 0:00:23]} 50. Kc2 {[%clk 0:00:03]}  Ke4 {[%clk 0:00:23]} 51. a4 {[%clk 0:00:04]}  Kf3 {[%clk 0:00:21]} 52. b4 {[%clk 0:00:04]}  Kf2 {[%clk 0:00:21]} 53. Rd1 {[%clk 0:00:04]}  Re6 {[%clk 0:00:19]} 54. a5 {[%clk 0:00:03]}  g2 {[%clk 0:00:19]} 55. b5 {[%clk 0:00:01]}  Re1 {[%clk 0:00:18]} 56. Rd2+ {[%clk 0:00:01]}  Re2 {[%clk 0:00:18]} 57. c4 {[%clk 0:00:02]}  Rxd2+ {[%clk 0:00:17]} 58. Kxd2 {[%clk 0:00:02]}  g1=Q {[%clk 0:00:17]} 59. a6 {[%clk 0:00:03]}  Kf3 {[%clk 0:00:17]} 60. Kc3 {[%clk 0:00:03]}  Ke4 {[%clk 0:00:17]} 61. Kb4 {[%clk 0:00:04]}  Kd4 {[%clk 0:00:15]} 62. a7 {[%clk 0:00:04]}  Qa1 {[%clk 0:00:13]} 63. b6 {[%clk 0:00:04]}  Qb1+ {[%clk 0:00:13]} 64. Ka5 {[%clk 0:00:05]}  Kc5 {[%clk 0:00:11]} 65. a8=Q {[%clk 0:00:04]}  Qa2# {[%clk 0:00:10]} 0-1


[Site "https://www.chess.com"]

[Event "Titled Tuesday Blitz August 24 2021"]
[White "Yaran, Siar"]
[Black "Omariev, Maksim"]
[WhiteFideId "6323006"]
[BlackFideId "4193423"]
[WhiteElo "1977"]
[BlackElo "2434"]
[Result "1-0"]
[Round "09"]
[TimeControl "180+1"]
[Date "2021.08.24"]
[WhiteClock "0:00:42"]
[BlackClock "0:00:03"]

1. e4 {[%clk 0:03:00]}  c5 {[%clk 0:02:58]} 2. Nf3 {[%clk 0:03:00]}  d6 {[%clk 0:02:59]} 3. d4 {[%clk 0:03:00]}  cxd4 {[%clk 0:03:00]} 4. Nxd4 {[%clk 0:03:01]}  Nf6 {[%clk 0:03:00]} 5. Nc3 {[%clk 0:03:01]}  a6 {[%clk 0:03:01]} 6. Bg5 {[%clk 0:03:01]}  Nbd7 {[%clk 0:03:01]} 7. Bc4 {[%clk 0:03:01]}  Qb6 {[%clk 0:03:00]} 8. Bb3 {[%clk 0:03:00]}  e6 {[%clk 0:02:59]} 9. O-O {[%clk 0:03:00]}  Be7 {[%clk 0:02:59]} 10. Kh1 {[%clk 0:03:00]}  Nc5 {[%clk 0:02:59]} 11. Qe2 {[%clk 0:02:59]}  O-O {[%clk 0:02:56]} 12. Rad1 {[%clk 0:02:57]}  Nxb3 {[%clk 0:02:53]} 13. cxb3 {[%clk 0:02:54]}  Re8 {[%clk 0:02:14]} 14. f4 {[%clk 0:02:44]}  Nd7 {[%clk 0:02:09]} 15. Bxe7 {[%clk 0:02:34]}  Rxe7 {[%clk 0:02:10]} 16. f5 {[%clk 0:02:34]}  Nf6 {[%clk 0:02:02]} 17. fxe6 {[%clk 0:02:10]}  fxe6 {[%clk 0:01:59]} 18. e5 {[%clk 0:02:07]}  dxe5 {[%clk 0:01:48]} 19. Qxe5 {[%clk 0:02:06]}  Qc7 {[%clk 0:01:48]} 20. Qg5 {[%clk 0:02:03]}  h6 {[%clk 0:01:17]} 21. Qg6 {[%clk 0:01:51]}  Nh7 {[%clk 0:00:41]} 22. Nf5 {[%clk 0:01:09]}  exf5 {[%clk 0:00:32]} 23. Nd5 {[%clk 0:01:09]}  Qe5 {[%clk 0:00:28]} 24. Nxe7+ {[%clk 0:01:09]}  Qxe7 {[%clk 0:00:28]} 25. Rfe1 {[%clk 0:01:09]}  Nf8 {[%clk 0:00:07]} 26. Qe8 {[%clk 0:00:42]}  Qxe8 {[%clk 0:00:04]} 27. Rxe8 {[%clk 0:00:43]}  b5 {[%clk 0:00:02]} 28. Rdd8 {[%clk 0:00:43]}  Bb7 {[%clk 0:00:03]} 29. Rxf8+ {[%clk 0:00:42]} 1-0


[Site "https://www.chess.com"]